fUSD/lending_fUSD_20250623
["ID","MTS","AMOUNT","RATE_DAILY","PERIOD"]
[367122635,1750662805524,-972.11,0.00033424,3]
[367122636,1750662805534,-548.42,0.00033424,3]
[367122637,1750662805662,-548.42,0.00033424,3]
[367122638,1750662805671,-2591.829598,0.00033424,3]
[367122639,1750662805681,-615.11,0.00033424,3]
[367122640,1750662805690,-804.23,0.00033424,3]
[367122641,1750662805699,-1075.31,0.00033424,3]
[367122642,1750662805709,-692.3,0.00033424,3]
[367122643,1750662805718,-811.41,0.00033424,3]
[367122644,1750662805728,-695.49,0.00033424,3]
[367122645,1750662805737,-833.21,0.00033424,3]
[367122646,1750662805747,-591.25,0.00033424,3]
[367122647,1750662805756,-977.66,0.00033424,3]
[367122648,1750662805766,-690.16,0.00033424,3]
[367122649,1750662805775,-1109.36,0.00033424,3]
[367122650,1750662805785,-526.92,0.00033424,3]
[367122651,1750662805794,-519.11,0.00033424,3]
[367122652,1750662805804,-970.12,0.00033424,3]
[367122653,1750662805813,-1478.36,0.00033424,3]
[367122654,1750662805823,-1376.6,0.00033424,3]
[367122655,1750662805833,-889.62,0.00033424,3]
[367122656,1750662805842,-1155.19,0.00033424,3]
[367122657,1750662805852,-495.01,0.00033424,3]
[367122658,1750662805861,-611.64,0.00033424,3]
[367122659,1750662805871,-668.52,0.00033424,3]
[367122660,1750662805880,-698.01,0.00033424,3]
[367122661,1750662805890,-644.39,0.00033424,3]
[367122662,1750662805899,-617.7,0.00033424,3]
[367122663,1750662805910,-826.8,0.00033424,3]
[367122664,1750662805919,-626.46,0.00033424,3]
[367122665,1750662805929,-841.55,0.00033424,3]
[367122666,1750662805939,-625.27,0.00033424,3]
[367122667,1750662805948,-1584.78,0.00033424,3]
[367122668,1750662805958,-348.09163513,0.00033424,3]
[367122669,1750662805968,-244.506872,0.00033424,3]
[367122670,1750662805977,-1089.25,0.00033424,3]
[367122671,1750662805987,-914.26,0.00033424,3]
[367122672,1750662805997,-777.39,0.00033424,3]
[367122673,1750662806006,-667.3,0.00033424,3]
[367122674,1750662806016,-1172.55,0.00033424,3]
[367122675,1750662806026,-857.69,0.00033424,3]
[367122676,1750662806036,-601.26,0.00033424,3]
[367122677,1750662806046,-654.18,0.00033424,3]
[367122678,1750662806055,-1486.14,0.00033424,3]
[367122679,1750662806065,-563.6,0.00033424,3]
[367122680,1750662806075,-2328.1,0.00033424,3]
[367122681,1750662806084,-641.56,0.00033424,3]
[367122682,1750662806094,-2984.61,0.00033424,3]
[367122683,1750662806104,-834.55,0.00033424,3]
[367122684,1750662806114,-1714.75,0.00033424,3]
[367122685,1750662806123,-1666.5,0.00033424,3]
[367122686,1750662806133,-579.07,0.00033424,3]
[367122687,1750662806143,-774.87,0.00033424,3]
[367122688,1750662806153,-523.64,0.00033424,3]
[367122689,1750662806162,-1685.1,0.00033424,3]
[367122690,1750662806172,-198.016965,0.00033424,3]
[367122691,1750662806181,-685.83,0.00033424,3]
[367122692,1750662806191,-845.32,0.00033424,3]
[367122693,1750662806201,-1003.013708,0.00033424,3]
[367122694,1750662806211,-407.03,0.00033424,3]
[367122695,1750662806220,-620.28,0.00033424,3]
[367122696,1750662806230,-692.18,0.00033424,3]
[367122697,1750662806240,-583.42,0.00033424,3]
[367122698,1750662806250,-1382.11,0.00033424,3]
[367122699,1750662806260,-957.53,0.00033424,3]
[367122700,1750662806270,-1520.85,0.00033424,3]
[367122701,1750662806280,-852.4,0.00033424,3]
[367122702,1750662806290,-1514.64,0.00033424,3]
[367122703,1750662806300,-1413.76,0.00033424,3]
[367122704,1750662806311,-564.98,0.00033424,3]
[367122705,1750662806321,-621.88,0.00033424,3]
[367122706,1750662806331,-1486.85,0.00033424,3]
[367122707,1750662806341,-643.76,0.00033424,3]
[367122708,1750662806351,-605.57,0.00033424,3]
[367122709,1750662806361,-635.87,0.00033424,3]
[367122710,1750662806371,-748.29,0.00033424,3]
[367122711,1750662806381,-559.87,0.00033424,3]
[367122712,1750662806390,-702.32,0.00033424,3]
[367122713,1750662806400,-521.1,0.00033424,3]
[367122714,1750662806409,-765.6,0.00033424,3]
[367122715,1750662806419,-1437.96,0.00033424,3]
[367122716,1750662806428,-933.29,0.00033424,3]
[367122717,1750662806438,-623.74,0.00033424,3]
[367122718,1750662806448,-1229.23,0.00033424,3]
[367122719,1750662806457,-1240.62,0.00033424,3]
[367122720,1750662806467,-541.701642,0.00033424,3]
[367122721,1750662806477,-1044.91,0.00033424,3]
[367122722,1750662806486,-636.16,0.00033424,3]
[367122723,1750662806495,-490.92,0.00033424,3]
[367122724,1750662806504,-583.46,0.00033424,3]
[367122725,1750662806514,-1648.05,0.00033424,3]
[367122726,1750662806524,-745.48,0.00033424,3]
[367122727,1750662806536,-1025.74,0.00033424,3]
[367122728,1750662806546,-507.64,0.00033424,3]
[367122729,1750662806556,-1776.13,0.00033424,3]
[367122730,1750662806566,-803.35,0.00033424,3]
[367122731,1750662806575,-1819.02,0.00033424,3]
[367122732,1750662806586,-1305.95,0.00033424,3]
[367122733,1750662806596,-1801.52,0.00033424,3]
[367122734,1750662806606,-825.12,0.00033424,3]
[367122735,1750662806620,-553.17,0.00033424,3]
[367122736,1750662806631,-1449.74,0.00033424,3]
[367122737,1750662806641,-1184.6,0.00033424,3]
[367122738,1750662806652,-2077.31,0.00033424,3]
[367122739,1750662806662,-903.1,0.00033424,3]
[367122740,1750662806672,-840.82,0.00033424,3]
[367122741,1750662806683,-1228.76,0.00033424,3]
[367122742,1750662806694,-698.82,0.00033424,3]
[367122743,1750662806704,-1683.09,0.00033424,3]
[367122744,1750662806715,-614.18,0.00033424,3]
[367122745,1750662806727,-1017.63,0.00033424,3]
[367122746,1750662806738,-1068.5,0.00033424,3]
[367122747,1750662806753,-899.45,0.00033424,3]
[367122748,1750662806762,-1018.31,0.00033424,3]
[367122749,1750662806772,-1034.85,0.00033424,3]
[367122750,1750662806782,-1636.32,0.00033424,3]
[367122751,1750662806791,-636.43,0.00033424,3]
[367122752,1750662806801,-514.73,0.00033424,3]
[367122753,1750662806810,-1597.54,0.00033424,3]
[367122754,1750662806820,-878.08,0.00033424,3]
[367122755,1750662806830,-933.44,0.00033424,3]
[367122756,1750662806839,-980.14,0.00033424,3]
[367122757,1750662806849,-1351.29,0.00033424,3]
[367122758,1750662806859,-490.0,0.00033424,3]
[367122759,1750662806870,-1021.72,0.00033424,3]
[367122760,1750662806879,-2515.92,0.00033424,3]
[367122761,1750662806889,-973.74,0.00033424,3]
[367122762,1750662806899,-563.49,0.00033424,3]
[367122763,1750662806908,-718.42,0.00033424,3]
[367122764,1750662806918,-1171.08,0.00033424,3]
[367122765,1750662806927,-763.59,0.00033424,3]
[367122766,1750662806938,-806.32,0.00033424,3]
[367122767,1750662806947,-1313.3,0.00033424,3]
[367122768,1750662806957,-1866.63,0.00033424,3]
[367122769,1750662806967,-783.39,0.00033424,3]
[367122770,1750662806976,-1408.5,0.00033424,3]
[367122771,1750662806985,-760.51,0.00033424,3]
[367122772,1750662806995,-640.07,0.00033424,3]
[367122773,1750662807005,-1113.91,0.00033424,3]
[367122774,1750662807015,-1204.57,0.00033424,3]
[367122775,1750662807024,-1615.12,0.00033424,3]
[367122776,1750662807034,-852.31,0.00033424,3]
[367122777,1750662807044,-1617.57,0.00033424,3]
[367122778,1750662807053,-1344.16,0.00033424,3]
[367122779,1750662807063,-1189.28,0.00033424,3]
[367122780,1750662807072,-924.24,0.00033424,3]
[367122781,1750662807082,-1017.87,0.00033424,3]
[367122782,1750662807091,-1327.65,0.00033424,3]
[367122783,1750662807100,-816.97,0.00033424,3]
[367122784,1750662807110,-1505.21,0.00033424,3]
[367122785,1750662807120,-1444.07,0.00033424,3]
[367122786,1750662807130,-995.43,0.00033424,3]
[367122787,1750662807140,-3010.94,0.00033424,2]
[367122788,1750662807150,-1097.45,0.00033424,3]
[367122789,1750662807159,-753.53,0.00033424,3]
[367122790,1750662807170,-1037.06,0.00033424,3]
[367122791,1750662807179,-1995.53,0.00033424,3]
[367122792,1750662807189,-752.2,0.00033424,3]
[367122793,1750662807198,-660.48,0.00033424,3]
[367122794,1750662807209,-1341.44,0.00033424,3]
[367122795,1750662807218,-850.05,0.00033424,3]
[367122796,1750662807228,-581.79,0.00033424,3]
[367122797,1750662807239,-2153.23,0.00033424,3]
[367122798,1750662807248,-557.61,0.00033424,3]
[367122799,1750662807258,-507.29,0.00033424,3]
[367122800,1750662807268,-572.59,0.00033424,3]
[367122801,1750662807277,-2413.05,0.00033424,3]
[367122802,1750662807287,-1348.78,0.00033424,3]
[367122803,1750662807297,-2316.4,0.00033424,3]
[367122804,1750662807307,-566.43,0.00033424,3]
[367122805,1750662807316,-1609.27,0.00033424,3]
[367122806,1750662807327,-569.99,0.00033424,3]
[367122807,1750662807337,-324.79997406,0.00033424,3]
[367122808,1750662807347,-731.27,0.00033424,3]
[367122809,1750662807357,-2663.87,0.00033424,3]
[367122810,1750662807366,-861.6,0.00033424,3]
[367122811,1750662807376,-560.0,0.00033424,3]
[367122812,1750662807386,-921.04,0.00033424,3]
[367122813,1750662807397,-783.55,0.00033424,3]
[367122814,1750662807407,-600.11,0.00033424,3]
[367122815,1750662807416,-1052.0,0.00033424,3]
[367122816,1750662807426,-1117.5,0.00033424,3]
[367122817,1750662807435,-785.27,0.00033424,3]
[367122818,1750662807446,-595.61,0.00033424,3]
[367122819,1750662807456,-950.58,0.00033424,3]
[367122820,1750662807467,-1688.41,0.00033424,3]
[367122821,1750662807478,-1953.41,0.00033424,3]
[367122822,1750662807488,-1726.17,0.00033424,3]
[367122823,1750662807497,-1456.32,0.00033424,3]
[367122824,1750662807507,-1698.32,0.00033424,3]
[367122825,1750662807516,-603.07,0.00033424,3]
[367122826,1750662807526,-1007.06,0.00033424,3]
[367122827,1750662807537,-1681.01,0.00033424,3]
[367122828,1750662807547,-1708.4,0.00033424,3]
[367122829,1750662807556,-873.29,0.00033424,3]
[367122830,1750662807568,-1098.59,0.00033424,3]
[367122831,1750662807577,-1944.53,0.00033424,3]
[367122832,1750662807587,-2433.81,0.00033424,3]
[367122833,1750662807597,-577.0,0.00033424,3]
[367122834,1750662807606,-750.42,0.00033424,3]
[367122835,1750662807616,-662.45,0.00033424,3]
[367122836,1750662807626,-501.38,0.00033424,3]
[367122837,1750662807636,-1247.14,0.00033424,3]
[367122838,1750662807645,-1551.77,0.00033424,3]
[367122839,1750662807655,-1650.44,0.00033424,3]
[367122840,1750662807665,-529.91,0.00033424,3]
[367122841,1750662807675,-626.23850534,0.00033424,3]
[367122842,1750662807685,-788.62,0.00033424,3]
[367122843,1750662807696,-912.47,0.00033424,3]
[367122844,1750662807707,-1251.29,0.00033424,3]
[367122845,1750662807717,-655.66,0.00033424,3]
[367122846,1750662807727,-703.59,0.00033424,3]
[367122847,1750662807737,-675.57,0.00033424,3]
[367122848,1750662807747,-1664.2,0.00033424,3]
[367122849,1750662807757,-1679.9,0.00033424,3]
[367122850,1750662807767,-1433.27,0.00033424,3]
[367122851,1750662807777,-1066.4,0.00033424,3]
[367122852,1750662807787,-626.06617431,0.00033424,3]
[367122853,1750662807797,-572.95,0.00033424,3]
[367122854,1750662807807,-1605.51,0.00033424,3]
[367122855,1750662807817,-1690.95,0.00033424,3]
[367122856,1750662807827,-490.0,0.00033424,3]
[367122857,1750662807837,-1674.28,0.00033424,3]
[367122858,1750662807857,-638.77,0.00033424,3]
[367122859,1750662807876,-1574.11,0.00033424,3]
[367122860,1750662808184,-378.81,0.00033424,3]
[367122861,1750662808195,-684.38,0.00033424,3]
[367122862,1750662808205,-1278.36,0.00033424,3]
[367122863,1750662808214,-905.6,0.00033424,3]
[367122864,1750662808224,-1682.39,0.00033424,3]
[367122865,1750662808233,-1126.22,0.00033424,3]
[367122866,1750662808243,-1883.69,0.00033424,3]
[367122867,1750662808253,-7415.21,0.00033424,3]
[367122868,1750662808262,-1410.38,0.00033424,3]
[367122869,1750662808272,-2332.56,0.00033424,3]
[367122870,1750662808282,-1449.04,0.00033424,3]
[367122871,1750662808292,-849.69,0.00033424,3]
[367122872,1750662808304,-883.32,0.00033424,3]
[367122873,1750662808315,-1248.93,0.00033424,3]
[367122874,1750662808325,-587.88,0.00033424,3]
[367122875,1750662808335,-901.3,0.00033424,3]
[367122876,1750662808345,-1164.04,0.00033424,3]
[367122877,1750662808355,-1753.14,0.00033424,3]
[367122878,1750662808364,-10399.38,0.00033424,3]
[367122879,1750662808374,-4073.96,0.00033424,3]
[367122880,1750662808384,-580.67,0.00033424,3]
[367122881,1750662808394,-1448.46,0.00033424,3]
[367122882,1750662808404,-836.73,0.00033424,3]
[367122883,1750662808414,-918.93,0.00033424,3]
[367122884,1750662808424,-1355.08,0.00033424,3]
[367122885,1750662808434,-1900.51,0.00033424,3]
[367122886,1750662808444,-526.35,0.00033424,3]
[367122887,1750662808454,-6824.52,0.00033424,3]
[367122888,1750662808465,-1016.76,0.00033424,3]
[367122889,1750662808475,-3401.6,0.00033424,3]
[367122890,1750662808485,-3966.47,0.00033424,3]
[367122891,1750662808494,-364.16305658,0.00033424,3]
[367122892,1750662808504,-909.73,0.00033424,3]
[367122893,1750662808514,-934.07,0.00033424,3]
[367122894,1750662808523,-4949.36,0.00033424,3]
[367122895,1750662808535,-2915.88,0.00033424,3]
[367122896,1750662808546,-1741.72,0.00033424,3]
[367122897,1750662808556,-1585.93,0.00033424,3]
[367122898,1750662808566,-608.52,0.00033424,3]
[367122899,1750662808576,-18062.45,0.00033424,3]
[367122900,1750662808585,-1570.58,0.00033424,3]
[367122901,1750662808595,-3468.99,0.00033424,3]
[367122902,1750662808604,-1672.97,0.00033424,3]
[367122903,1750662808616,-789.6,0.00033424,3]
[367122904,1750662808626,-798.22,0.00033424,3]
[367122905,1750662808635,-1533.06,0.00033424,3]
[367122906,1750662808645,-1681.4,0.00033424,3]
[367122907,1750662808655,-814.19,0.00033424,3]
[367122908,1750662808664,-528.64,0.00033424,3]
[367122909,1750662808674,-1980.76,0.00033424,3]
[367122910,1750662808683,-1108.02,0.00033424,3]
[367122911,1750662808694,-2594.4,0.00033424,3]
[367122912,1750662808703,-1623.55,0.00033424,3]
[367122913,1750662808713,-891.21,0.00033424,3]
[367122914,1750662808723,-1019.18,0.00033424,3]
[367122915,1750662808733,-1174.99,0.00033424,3]
[367122916,1750662808743,-3127.29,0.00033424,3]
[367122917,1750662808753,-1569.21,0.00033424,3]
[367122918,1750662808762,-1940.59,0.00033424,3]
[367122919,1750662808772,-2329.34,0.00033424,3]
[367122920,1750662808781,-664.92,0.00033424,3]
[367122921,1750662808791,-1830.85,0.00033424,3]
[367122922,1750662808801,-1700.21,0.00033424,3]
[367122923,1750662808810,-2769.81,0.00033424,3]
[367122924,1750662808820,-6713.02,0.00033424,3]
[367122925,1750662808829,-777.56,0.00033424,3]
[367122926,1750662808839,-744.42,0.00033424,3]
[367122927,1750662808848,-2394.73,0.00033424,3]
[367122928,1750662808857,-826.09,0.00033424,3]
[367122929,1750662808867,-1294.78,0.00033424,3]
[367122930,1750662808876,-570.07815269,0.00033424,3]
[367122931,1750662808885,-760.04,0.00033424,3]
[367122932,1750662808895,-1749.09,0.00033424,3]
[367122933,1750662808904,-490.0,0.00033424,3]
[367122934,1750662808914,-555.71,0.00033424,3]
[367122935,1750662808923,-1626.24,0.00033424,3]
[367122936,1750662808933,-4056.64,0.00033424,3]
[367122937,1750662808943,-1498.64,0.00033424,3]
[367122938,1750662808952,-1457.21,0.00033424,3]
[367122939,1750662808962,-490.0,0.00033424,3]
[367122940,1750662808971,-737.54,0.00033424,3]
[367122941,1750662808981,-1307.83,0.00033424,3]
[367122942,1750662808990,-728.06,0.00033424,3]
[367122943,1750662808999,-1832.35,0.00033424,3]
[367122944,1750662809009,-1380.67,0.00033424,3]
[367122945,1750662809018,-2228.14,0.00033424,3]
[367122946,1750662809027,-2372.02,0.00033424,3]
[367122947,1750662809037,-3318.96,0.00033424,3]
[367122948,1750662809046,-709.01,0.00033424,3]
[367122949,1750662809056,-862.45,0.00033424,3]
[367122950,1750662809066,-788.8,0.00033424,3]
[367122951,1750662809076,-1200.13,0.00033424,3]
[367122952,1750662809086,-1916.86,0.00033424,3]
[367122953,1750662809095,-678.77,0.00033424,3]
[367122954,1750662809105,-4654.08,0.00033424,3]
[367122955,1750662809115,-1366.52,0.00033424,3]
[367122956,1750662809125,-515.04,0.00033424,3]
[367122957,1750662809135,-788.62,0.00033424,3]
[367122958,1750662809144,-553.78,0.00033424,3]
[367122959,1750662809154,-1107.26,0.00033424,3]
[367122960,1750662809163,-498.97,0.00033424,3]
[367122961,1750662809174,-7394.17,0.00033424,3]
[367122962,1750662809183,-1624.99,0.00033424,3]
[367122963,1750662809193,-1578.33,0.00033424,3]
[367122964,1750662809202,-2834.49,0.00033424,3]
[367122965,1750662809212,-1036.64,0.00033424,3]
[367122966,1750662809220,-12536.04,0.00033424,3]
[367122967,1750662809230,-3543.99,0.00033424,3]
[367122968,1750662809239,-1768.62,0.00033424,3]
[367122969,1750662809249,-497.45,0.00033424,3]
[367122970,1750662809258,-510.41,0.00033424,3]
[367122971,1750662809267,-1619.96,0.00033424,3]
[367122972,1750662809277,-5190.35,0.00033424,3]
[367122973,1750662809287,-9852.89,0.00033424,3]
[367122974,1750662809296,-490.0,0.00033424,3]
[367122975,1750662809306,-1552.44,0.00033424,3]
[367122976,1750662809316,-814.87,0.00033424,3]
[367122977,1750662809325,-2783.14,0.00033424,3]
[367122978,1750662809335,-510.26,0.00033424,3]
[367122979,1750662809344,-1717.08,0.00033424,3]
[367122980,1750662809354,-1947.91,0.00033424,3]
[367122981,1750662809364,-1630.26,0.00033424,3]
[367122982,1750662809374,-2330.84,0.00033424,3]
[367122983,1750662809384,-752.02,0.00033424,3]
[367122984,1750662809394,-1618.67,0.00033424,3]
[367122985,1750662809404,-1776.65,0.00033424,3]
[367122986,1750662809414,-915.84,0.00033424,3]
[367122987,1750662809424,-1151.97,0.00033424,3]
[367122988,1750662809434,-670.37,0.00033424,3]
[367122989,1750662809444,-1591.01,0.00033424,3]
[367122990,1750662809453,-3986.65,0.00033424,3]
[367122991,1750662809463,-6065.53,0.00033424,3]
[367122992,1750662809473,-1605.38,0.00033424,3]
[367122993,1750662809482,-1960.82,0.00033424,3]
[367122994,1750662809491,-1642.63,0.00033424,3]
[367122995,1750662809502,-798.12,0.00033424,3]
[367122996,1750662809513,-1292.66,0.00033424,3]
[367122997,1750662809523,-2292.5,0.00033424,3]
[367122998,1750662809536,-2903.63,0.00033424,3]
[367122999,1750662809548,-1562.1,0.00033424,3]
[367123000,1750662809559,-4219.23,0.00033424,3]
[367123001,1750662809568,-765.43,0.00033424,3]
[367123002,1750662809577,-1872.32,0.00033424,3]
[367123003,1750662809586,-3240.53,0.00033424,3]
[367123004,1750662809595,-492.32,0.00033424,3]
[367123005,1750662809606,-1499.13,0.00033424,3]
[367123006,1750662809616,-1684.89,0.00033424,3]
[367123007,1750662809625,-1822.31,0.00033424,3]
[367123008,1750662809639,-2262.37,0.00033424,3]
[367123009,1750662809649,-745.32,0.00033424,3]
[367123010,1750662809659,-1565.33,0.00033424,3]
[367123011,1750662809668,-1599.78,0.00033424,3]
[367123012,1750662809677,-3248.59,0.00033424,3]
[367123013,1750662809687,-638.67,0.00033424,3]
[367123014,1750662809697,-8785.1,0.00033424,3]
[367123015,1750662809707,-849.6,0.00033424,3]
[367123016,1750662809716,-1787.94,0.00033424,3]
[367123017,1750662809726,-1444.68,0.00033424,3]
[367123018,1750662809737,-948.02,0.00033424,3]
[367123019,1750662809747,-1335.88,0.00033424,3]
[367123020,1750662809757,-795.18,0.00033424,3]
[367123021,1750662809767,-546.42047675,0.00033424,3]
[367123022,1750662809777,-1583.66,0.00033424,3]
[367123023,1750662809786,-507.9,0.00033424,3]
[367123024,1750662809796,-3963.91,0.00033424,3]
[367123025,1750662809805,-1578.99,0.00033424,3]
[367123026,1750662809815,-1445.82,0.00033424,3]
[367123027,1750662809825,-1285.59,0.00033424,3]
[367123028,1750662809834,-728.45,0.00033424,3]
[367123029,1750662809844,-806.96,0.00033424,3]
[367123030,1750662809853,-1797.81,0.00033424,3]
[367123031,1750662809863,-1432.05,0.00033424,3]
[367123032,1750662809873,-1831.64,0.00033424,3]
[367123033,1750662809883,-919.07,0.00033424,3]
[367123034,1750662809893,-14900.62,0.00033424,3]
[367123035,1750662809904,-1833.67,0.00033424,3]
[367123036,1750662809914,-2078.39,0.00033424,3]
[367123037,1750662809925,-510.45,0.00033424,3]
[367123038,1750662809934,-4833.93,0.00033424,3]
[367123039,1750662809945,-1601.31,0.00033424,3]
[367123040,1750662809956,-759.06,0.00033424,3]
[367123041,1750662809966,-873.41,0.00033424,3]
[367123042,1750662809976,-4669.42,0.00033424,3]
[367123043,1750662809986,-1693.53,0.00033424,3]
[367123044,1750662809995,-791.68,0.00033424,3]
[367123045,1750662810005,-990.18,0.00033424,3]
[367123046,1750662810015,-1034.99,0.00033424,3]
[367123047,1750662810024,-1620.6,0.00033424,3]
[367123048,1750662810034,-1653.45,0.00033424,3]
[367123049,1750662810046,-1389.7,0.00033424,3]
[367123050,1750662810055,-3451.15,0.00033424,3]
[367123051,1750662810066,-2416.24,0.00033424,3]
[367123052,1750662810075,-993.54,0.00033424,3]
[367123053,1750662810085,-11090.94,0.00033424,3]
[367123054,1750662810096,-1799.28,0.00033424,3]
[367123055,1750662810106,-1701.67,0.00033424,3]
[367123056,1750662810116,-2070.18,0.00033424,3]
[367123057,1750662810126,-1221.42,0.00033424,3]
[367123058,1750662810135,-1378.47,0.00033424,3]
[367123059,1750662810145,-1736.17,0.00033424,3]
[367123060,1750662810155,-1087.15,0.00033424,3]
[367123061,1750662810164,-1834.95,0.00033424,3]
[367123062,1750662810174,-709.09,0.00033424,3]
[367123063,1750662810184,-1672.0,0.00033424,3]
[367123064,1750662810194,-1571.12,0.00033424,3]
[367123065,1750662810203,-1351.61,0.00033424,3]
[367123066,1750662810212,-4884.01,0.00033424,3]
[367123067,1750662810222,-1816.97,0.00033424,3]
[367123068,1750662810231,-1729.07,0.00033424,3]
[367123069,1750662810241,-8073.75,0.00033424,3]
[367123070,1750662810250,-1652.26,0.00033424,3]
[367123071,1750662810260,-867.32,0.00033424,3]
[367123072,1750662810270,-1482.76,0.00033424,3]
[367123073,1750662810279,-30050.84,0.00033424,3]
[367123074,1750662810289,-1869.9,0.00033424,3]
[367123075,1750662810300,-1513.2,0.00033424,3]
[367123076,1750662810310,-825.47,0.00033424,3]
[367123077,1750662810319,-1291.21,0.00033424,3]
[367123078,1750662810328,-529.57,0.00033424,3]
[367123079,1750662810338,-718.8,0.00033424,3]
[367123080,1750662810347,-1013.98,0.00033424,2]
[367123081,1750662810357,-749.71,0.00033424,3]
[367123082,1750662810366,-2626.45,0.00033424,3]
[367123083,1750662810376,-1301.95,0.00033424,3]
[367123084,1750662810385,-1000.93,0.00033424,3]
[367123085,1750662810395,-914.97,0.00033424,3]
[367123086,1750662810404,-5331.91,0.00033424,3]
[367123087,1750662810414,-6188.74,0.00033424,3]
[367123088,1750662810423,-2204.74,0.00033424,3]
[367123089,1750662810432,-733.17,0.00033424,3]
[367123090,1750662810441,-742.07,0.00033424,3]
[367123091,1750662810450,-1553.91,0.00033424,3]
[367123092,1750662810460,-1201.89,0.00033424,3]
[367123093,1750662810469,-716.87,0.00033424,3]
[367123094,1750662810479,-866.05,0.00033424,3]
[367123095,1750662810488,-5637.09,0.00033424,3]
[367123096,1750662810503,-1651.87,0.00033424,3]
[367123097,1750662810521,-2465.19,0.00033424,3]
[367123098,1750662810538,-984.57,0.00033424,3]
[367123099,1750662810551,-1607.85,0.00033424,3]
[367123100,1750662810563,-572.05,0.00033424,3]
[367123101,1750662810574,-1536.26,0.00033424,3]
[367123102,1750662810584,-1906.99,0.00033424,3]
[367123103,1750662810702,-764.72,0.00033424,3]
[367123104,1750662810721,-2965.58,0.00033424,3]
[367123105,1750662810731,-594.04,0.00033424,3]
[367123106,1750662810743,-500.0,0.00033444,5]
[367123107,1750662810752,-1224.0,0.00033496,7]
[367123108,1750662810762,-155.76,0.000335,31]
[367123109,1750662810771,-155.76,0.000335,31]
[367123110,1750662810780,-211.0,0.0003356,2]
[367123111,1750662810789,-1258.03765544,0.0003359,29]
[367123112,1750662810799,-5455.753665,0.00033698,3]
[367123113,1750662810807,-906.98231935,0.00033698,3]
[367123114,1750662810819,-765.47713107,0.00033698,3]
[367123115,1750662810831,-252.921479,0.00033698,3]
[367123116,1750662810843,-958.96154645,0.00033698,3]
[367123117,1750662810853,-972.13075494,0.00033698,3]
[367123118,1750662810862,-548.64303864,0.00033698,3]
[367123119,1750662810873,-548.64303864,0.00033698,3]
[367123120,1750662810883,-2591.829598,0.00033698,3]
[367123121,1750662810892,-615.26,0.00033698,3]
[367123122,1750662810901,-804.28738448,0.00033698,3]
[367123123,1750662810911,-1075.53320178,0.00033698,3]
[367123124,1750662810920,-692.35240218,0.00033698,3]
[367123125,1750662810930,-811.43491194,0.00033698,3]
[367123126,1750662810939,-695.56871201,0.00033698,3]
[367123127,1750662810949,-833.43319784,0.00033698,3]
[367123128,1750662810959,-591.44499369,0.00033698,3]
[367123129,1750662810968,-977.85590512,0.00033698,3]
[367123130,1750662810978,-690.33201642,0.00033698,3]
[367123131,1750662810988,-1109.56609717,0.00033698,3]
[367123132,1750662810997,-527.06708311,0.00033698,3]
[367123133,1750662811007,-519.27064642,0.00033698,3]
[367123134,1750662811016,-970.34096848,0.00033698,3]